[Event "Titled Tuesday Blitz July 11 Early 2023"]
[White "Harriott, Tyrell"]
[Black "Goughfather"]
[WhiteFideId "2086484"]
[WhiteElo "2372"]
[BlackElo "2040"]
[Result "1-0"]
[Round "5"]
[TimeControl "180+2"]
[Date "2023.07.11"]
[WhiteClock "0:00:44"]
[BlackClock "0:00:00"]
[Board "182"]

1. d4 {[%clk 0:02:56]}  d5 {[%clk 0:02:59]} 2. e3 {[%clk 0:02:56]}  Nf6 {[%clk 0:02:58]} 3. Bd3 {[%clk 0:02:56]}  g6 {[%clk 0:02:50]} 4. f4 {[%clk 0:02:55]}  Bf5 {[%clk 0:02:50]} 5. Nf3 {[%clk 0:02:53]}  Bg7 {[%clk 0:02:49]} 6. O-O {[%clk 0:02:53]}  Nbd7 {[%clk 0:02:49]} 7. Nbd2 {[%clk 0:02:51]}  Ne4 {[%clk 0:02:40]} 8. Qe2 {[%clk 0:02:44]}  Ndf6 {[%clk 0:02:38]} 9. c4 {[%clk 0:02:43]}  e6 {[%clk 0:02:31]} 10. cxd5 {[%clk 0:02:32]}  exd5 {[%clk 0:02:30]} 11. Ne5 {[%clk 0:02:32]}  c6 {[%clk 0:02:10]} 12. Ndf3 {[%clk 0:02:30]}  O-O {[%clk 0:02:03]} 13. b3 {[%clk 0:02:28]}  Nd6 {[%clk 0:02:00]} 14. Ba3 {[%clk 0:02:25]}  Bxd3 {[%clk 0:01:51]} 15. Qxd3 {[%clk 0:02:25]}  Re8 {[%clk 0:01:51]} 16. Nd2 {[%clk 0:02:17]}  Nfe4 {[%clk 0:01:45]} 17. Nef3 {[%clk 0:02:13]}  Nxd2 {[%clk 0:01:39]} 18. Nxd2 {[%clk 0:02:12]}  Ne4 {[%clk 0:01:39]} 19. Nxe4 {[%clk 0:02:09]}  Rxe4 {[%clk 0:01:39]} 20. Rf3 {[%clk 0:02:09]}  f5 {[%clk 0:01:34]} 21. Raf1 {[%clk 0:02:05]}  Qe8 {[%clk 0:01:30]} 22. h3 {[%clk 0:02:02]}  Qe6 {[%clk 0:01:28]} 23. Kh2 {[%clk 0:01:59]}  Re8 {[%clk 0:01:26]} 24. Bc1 {[%clk 0:01:57]}  a6 {[%clk 0:01:19]} 25. Rg1 {[%clk 0:01:56]}  h5 {[%clk 0:01:13]} 26. g4 {[%clk 0:01:51]}  hxg4 {[%clk 0:01:12]} 27. hxg4 {[%clk 0:01:51]}  Kf7 {[%clk 0:01:11]} 28. Rfg3 {[%clk 0:01:46]}  Bf6 {[%clk 0:01:07]} 29. gxf5 {[%clk 0:01:44]}  Qxf5 {[%clk 0:01:05]} 30. Kg2 {[%clk 0:01:38]}  Rh8 {[%clk 0:00:50]} 31. Kf1 {[%clk 0:01:35]}  Rh6 {[%clk 0:00:45]} 32. R3g2 {[%clk 0:01:29]}  Qh3 {[%clk 0:00:40]} 33. Qd1 {[%clk 0:01:22]}  Rh4 {[%clk 0:00:20]} 34. Bd2 {[%clk 0:01:17]}  Rh5 {[%clk 0:00:16]} 35. Qg4 {[%clk 0:01:15]}  Qxg4 {[%clk 0:00:09]} 36. Rxg4 {[%clk 0:01:16]}  Rh6 {[%clk 0:00:09]} 37. Kf2 {[%clk 0:01:15]}  Re8 {[%clk 0:00:09]} 38. R1g2 {[%clk 0:01:14]}  Reh8 {[%clk 0:00:08]} 39. Kg3 {[%clk 0:01:09]}  Rh3+ {[%clk 0:00:08]} 40. Kf2 {[%clk 0:01:09]}  R8h6 {[%clk 0:00:07]} 41. Ke2 {[%clk 0:01:06]}  Be7 {[%clk 0:00:05]} 42. Be1 {[%clk 0:01:06]}  Rh2 {[%clk 0:00:05]} 43. Bf2 {[%clk 0:01:01]}  Rxg2 {[%clk 0:00:04]} 44. Rxg2 {[%clk 0:01:02]}  Ke6 {[%clk 0:00:04]} 45. Kf3 {[%clk 0:01:00]}  Kf5 {[%clk 0:00:04]} 46. Bg3 {[%clk 0:01:00]}  Rh3 {[%clk 0:00:04]} 47. Kf2 {[%clk 0:00:56]}  Bh4 {[%clk 0:00:04]} 48. Bxh4 {[%clk 0:00:56]}  Rxh4 {[%clk 0:00:04]} 49. Rg5+ {[%clk 0:00:57]}  Kf6 {[%clk 0:00:04]} 50. Re5 {[%clk 0:00:57]}  Rh2+ {[%clk 0:00:04]} 51. Kf3 {[%clk 0:00:57]}  Rxa2 {[%clk 0:00:04]} 52. Re8 {[%clk 0:00:55]}  Rh2 {[%clk 0:00:04]} 53. Rb8 {[%clk 0:00:55]}  Rh3+ {[%clk 0:00:04]} 54. Ke2 {[%clk 0:00:54]}  Rh2+ {[%clk 0:00:04]} 55. Kd3 {[%clk 0:00:54]}  Kf5 {[%clk 0:00:04]} 56. Rxb7 {[%clk 0:00:54]}  g5 {[%clk 0:00:04]} 57. fxg5 {[%clk 0:00:49]}  Kxg5 {[%clk 0:00:04]} 58. Rb6 {[%clk 0:00:49]}  Rh6 {[%clk 0:00:03]} 59. Rxa6 {[%clk 0:00:49]}  Kf5 {[%clk 0:00:04]} 60. b4 {[%clk 0:00:49]}  Rd6 {[%clk 0:00:03]} 61. b5 {[%clk 0:00:48]}  Ke6 {[%clk 0:00:03]} 62. Rxc6 {[%clk 0:00:43]}  Rxc6 {[%clk 0:00:03]} 63. bxc6 {[%clk 0:00:44]}  Kd6 {[%clk 0:00:04]} 64. e4 {[%clk 0:00:43]}  dxe4+ {[%clk 0:00:03]} 65. Kxe4 {[%clk 0:00:43]}  Kxc6 {[%clk 0:00:04]} 66. Ke5 {[%clk 0:00:43]}  Kc7 {[%clk 0:00:04]} 67. Ke6 {[%clk 0:00:43]}  Kc6 {[%clk 0:00:03]} 68. d5+ {[%clk 0:00:43]}  Kc7 {[%clk 0:00:04]} 69. Ke7 {[%clk 0:00:43]}  Kb6 {[%clk 0:00:00]} 70. d6 {[%clk 0:00:44]} 1-0


[Site "https://www.chess.com"]

[Event "Titled Tuesday Blitz July 11 Early 2023"]
[White "Ismayilova, Khanim"]
[Black "Ahn, Hongjin"]
[WhiteFideId "13429019"]
[BlackFideId "13201492"]
[WhiteElo "2032"]
[BlackElo "2370"]
[Result "0-1"]
[Round "5"]
[TimeControl "180+2"]
[Date "2023.07.11"]
[WhiteClock "0:00:39"]
[BlackClock "0:00:25"]
[Board "183"]

1. c4 {[%clk 0:03:00]}  c5 {[%clk 0:02:58]} 2. Nc3 {[%clk 0:03:00]}  Nc6 {[%clk 0:02:58]} 3. Nf3 {[%clk 0:02:57]}  Nf6 {[%clk 0:02:58]} 4. e3 {[%clk 0:02:57]}  e6 {[%clk 0:02:58]} 5. d4 {[%clk 0:02:56]}  d5 {[%clk 0:02:59]} 6. cxd5 {[%clk 0:02:56]}  exd5 {[%clk 0:02:58]} 7. Bb5 {[%clk 0:02:56]}  a6 {[%clk 0:02:55]} 8. Bxc6+ {[%clk 0:02:56]}  bxc6 {[%clk 0:02:56]} 9. O-O {[%clk 0:02:55]}  Bd6 {[%clk 0:02:45]} 10. Na4 {[%clk 0:02:46]}  cxd4 {[%clk 0:02:41]} 11. exd4 {[%clk 0:02:45]}  O-O {[%clk 0:02:41]} 12. Bg5 {[%clk 0:02:44]}  h6 {[%clk 0:02:41]} 13. Bh4 {[%clk 0:02:40]}  Bg4 {[%clk 0:02:37]} 14. h3 {[%clk 0:02:38]}  Bh5 {[%clk 0:02:37]} 15. Nc3 {[%clk 0:02:34]}  Re8 {[%clk 0:02:15]} 16. Qd3 {[%clk 0:02:32]}  g5 {[%clk 0:01:58]} 17. Bg3 {[%clk 0:02:23]}  Bg6 {[%clk 0:01:58]} 18. Qd2 {[%clk 0:02:21]}  Ne4 {[%clk 0:01:42]} 19. Nxe4 {[%clk 0:02:17]}  dxe4 {[%clk 0:01:41]} 20. Ne5 {[%clk 0:02:14]}  Bxe5 {[%clk 0:01:40]} 21. Bxe5 {[%clk 0:02:10]}  Rxe5 {[%clk 0:01:40]} 22. f4 {[%clk 0:02:08]}  Rd5 {[%clk 0:01:27]} 23. Rad1 {[%clk 0:02:06]}  Qe7 {[%clk 0:01:23]} 24. fxg5 {[%clk 0:01:46]}  e3 {[%clk 0:01:20]} 25. Qe2 {[%clk 0:01:32]}  Rxg5 {[%clk 0:01:19]} 26. h4 {[%clk 0:01:30]}  Bh5 {[%clk 0:01:08]} 27. Qe1 {[%clk 0:01:19]}  e2 {[%clk 0:00:45]} 28. hxg5 {[%clk 0:01:13]}  Qe3+ {[%clk 0:00:44]} 29. Kh1 {[%clk 0:01:12]}  exd1=Q {[%clk 0:00:44]} 30. Qxe3 {[%clk 0:01:05]}  Qxf1+ {[%clk 0:00:44]} 31. Kh2 {[%clk 0:01:06]}  hxg5 {[%clk 0:00:39]} 32. Qxg5+ {[%clk 0:01:05]}  Bg6 {[%clk 0:00:39]} 33. d5 {[%clk 0:01:04]}  cxd5 {[%clk 0:00:37]} 34. a4 {[%clk 0:01:03]}  Re8 {[%clk 0:00:35]} 35. b4 {[%clk 0:01:03]}  Re2 {[%clk 0:00:35]} 36. b5 {[%clk 0:01:03]}  axb5 {[%clk 0:00:30]} 37. axb5 {[%clk 0:01:01]}  Re1 {[%clk 0:00:30]} 38. Qxd5 {[%clk 0:00:51]}  Qg1+ {[%clk 0:00:28]} 39. Kg3 {[%clk 0:00:50]}  Re3+ {[%clk 0:00:29]} 40. Kg4 {[%clk 0:00:46]}  Re4+ {[%clk 0:00:28]} 41. Kh3 {[%clk 0:00:40]}  Qh1+ {[%clk 0:00:23]} 42. Kg3 {[%clk 0:00:39]}  Qh4+ {[%clk 0:00:24]} 43. Kf3 {[%clk 0:00:39]}  Qf4# {[%clk 0:00:25]} 0-1


[Site "https://www.chess.com"]

[Event "Titled Tuesday Blitz July 11 Early 2023"]
[White "Seletsky, Grigory"]
[Black "Sava, Christiansen-Danut-Eugen"]
[WhiteFideId "14112191"]
[BlackFideId "1210114"]
[WhiteElo "2368"]
[BlackElo "1983"]
[Result "1-0"]
[Round "5"]
[TimeControl "180+2"]
[Date "2023.07.11"]
[WhiteClock "0:01:22"]
[BlackClock "0:01:16"]
[Board "184"]

1. e4 {[%clk 0:03:00]}  e6 {[%clk 0:02:58]} 2. d4 {[%clk 0:02:59]}  d5 {[%clk 0:02:56]} 3. Nd2 {[%clk 0:03:00]}  c5 {[%clk 0:02:55]} 4. exd5 {[%clk 0:02:59]}  exd5 {[%clk 0:02:54]} 5. Ngf3 {[%clk 0:02:59]}  Nc6 {[%clk 0:02:53]} 6. Bb5 {[%clk 0:02:58]}  Nf6 {[%clk 0:02:53]} 7. Qe2+ {[%clk 0:02:58]}  Qe7 {[%clk 0:02:51]} 8. dxc5 {[%clk 0:02:51]}  Qxe2+ {[%clk 0:02:50]} 9. Kxe2 {[%clk 0:02:50]}  Bxc5 {[%clk 0:02:51]} 10. Nb3 {[%clk 0:02:51]}  Bb6 {[%clk 0:02:40]} 11. Be3 {[%clk 0:02:50]}  Bf5 {[%clk 0:02:33]} 12. Bxb6 {[%clk 0:02:49]}  axb6 {[%clk 0:02:33]} 13. Nbd4 {[%clk 0:02:46]}  Bd7 {[%clk 0:02:33]} 14. c3 {[%clk 0:02:44]}  O-O-O {[%clk 0:02:32]} 15. Rhe1 {[%clk 0:02:38]}  Nxd4+ {[%clk 0:02:31]} 16. Nxd4 {[%clk 0:02:38]}  Bxb5+ {[%clk 0:02:32]} 17. Nxb5 {[%clk 0:02:38]}  Rhe8+ {[%clk 0:02:32]} 18. Kf1 {[%clk 0:02:33]}  Ne4 {[%clk 0:02:33]} 19. Rad1 {[%clk 0:02:32]}  h5 {[%clk 0:02:17]} 20. f3 {[%clk 0:02:32]}  Nf6 {[%clk 0:02:17]} 21. Rxe8 {[%clk 0:02:28]}  Nxe8 {[%clk 0:02:18]} 22. Re1 {[%clk 0:02:27]}  Nc7 {[%clk 0:02:17]} 23. Nxc7 {[%clk 0:02:22]}  Kxc7 {[%clk 0:02:18]} 24. Re7+ {[%clk 0:02:09]}  Rd7 {[%clk 0:02:18]} 25. Rxd7+ {[%clk 0:02:09]}  Kxd7 {[%clk 0:02:19]} 26. Ke2 {[%clk 0:02:09]}  Kd6 {[%clk 0:02:18]} 27. Kd3 {[%clk 0:02:07]}  Ke5 {[%clk 0:02:17]} 28. g3 {[%clk 0:02:05]}  g5 {[%clk 0:02:17]} 29. Ke3 {[%clk 0:02:05]}  h4 {[%clk 0:02:11]} 30. f4+ {[%clk 0:01:48]}  gxf4+ {[%clk 0:02:11]} 31. gxf4+ {[%clk 0:01:49]}  Kf5 {[%clk 0:02:11]} 32. Kf3 {[%clk 0:01:46]}  b5 {[%clk 0:01:57]} 33. h3 {[%clk 0:01:32]}  Ke6 {[%clk 0:01:18]} 34. Kg4 {[%clk 0:01:29]}  b4 {[%clk 0:01:18]} 35. Kxh4 {[%clk 0:01:29]}  bxc3 {[%clk 0:01:18]} 36. bxc3 {[%clk 0:01:28]}  b5 {[%clk 0:01:18]} 37. Kg5 {[%clk 0:01:25]}  b4 {[%clk 0:01:18]} 38. cxb4 {[%clk 0:01:22]}  d4 {[%clk 0:01:18]} 39. Kg4 {[%clk 0:01:23]}  Kd5 {[%clk 0:01:18]} 40. Kf3 {[%clk 0:01:23]}  Kc4 {[%clk 0:01:19]} 41. Ke2 {[%clk 0:01:24]}  Kc3 {[%clk 0:01:18]} 42. Kd1 {[%clk 0:01:23]}  Kd3 {[%clk 0:01:18]} 43. b5 {[%clk 0:01:21]}  Kc4 {[%clk 0:01:16]} 44. b6 {[%clk 0:01:22]} 1-0


[Site "https://www.chess.com"]

[Event "Titled Tuesday Blitz July 11 Early 2023"]
[White "Buscar, Michael"]
[Black "Navyblue1"]
[WhiteFideId "2603616"]
[WhiteElo "2356"]
[BlackElo "1754"]
[Result "1/2-1/2"]
[Round "5"]
[TimeControl "180+2"]
[Date "2023.07.11"]
[WhiteClock "0:00:07"]
[BlackClock "0:00:07"]
[Board "186"]

1. Nf3 {[%clk 0:02:59]}  c5 {[%clk 0:02:58]} 2. b4 {[%clk 0:02:58]}  cxb4 {[%clk 0:02:55]} 3. a3 {[%clk 0:02:58]}  bxa3 {[%clk 0:02:46]} 4. Bxa3 {[%clk 0:02:58]}  d6 {[%clk 0:02:43]} 5. g3 {[%clk 0:02:58]}  Nc6 {[%clk 0:02:42]} 6. Bg2 {[%clk 0:02:59]}  e6 {[%clk 0:02:40]} 7. c4 {[%clk 0:02:57]}  Be7 {[%clk 0:02:39]} 8. Nc3 {[%clk 0:02:55]}  Nf6 {[%clk 0:02:38]} 9. d4 {[%clk 0:02:49]}  O-O {[%clk 0:02:17]} 10. O-O {[%clk 0:02:43]}  Bd7 {[%clk 0:01:44]} 11. d5 {[%clk 0:02:36]}  Na5 {[%clk 0:01:32]} 12. Qd3 {[%clk 0:02:34]}  e5 {[%clk 0:01:29]} 13. Nd2 {[%clk 0:02:32]}  b6 {[%clk 0:01:25]} 14. Nde4 {[%clk 0:01:54]}  Nxe4 {[%clk 0:01:22]} 15. Nxe4 {[%clk 0:01:54]}  Nb7 {[%clk 0:01:00]} 16. Ra2 {[%clk 0:01:34]}  Qc7 {[%clk 0:00:20]} 17. Rfa1 {[%clk 0:01:18]}  Nc5 {[%clk 0:00:19]} 18. Bxc5 {[%clk 0:01:09]}  bxc5 {[%clk 0:00:19]} 19. Nc3 {[%clk 0:00:55]}  a5 {[%clk 0:00:18]} 20. e4 {[%clk 0:00:41]}  Rfb8 {[%clk 0:00:17]} 21. Bf1 {[%clk 0:00:41]}  Rb4 {[%clk 0:00:16]} 22. Nb5 {[%clk 0:00:37]}  Bxb5 {[%clk 0:00:16]} 23. cxb5 {[%clk 0:00:36]}  Qb6 {[%clk 0:00:16]} 24. Qc2 {[%clk 0:00:31]}  Bd8 {[%clk 0:00:16]} 25. Bc4 {[%clk 0:00:31]}  Rb8 {[%clk 0:00:14]} 26. h4 {[%clk 0:00:26]}  Qb7 {[%clk 0:00:14]} 27. Kg2 {[%clk 0:00:24]}  Qd7 {[%clk 0:00:14]} 28. Ra4 {[%clk 0:00:23]}  Qc8 {[%clk 0:00:12]} 29. f3 {[%clk 0:00:16]}  g6 {[%clk 0:00:11]} 30. g4 {[%clk 0:00:16]}  Bxh4 {[%clk 0:00:11]} 31. Rh1 {[%clk 0:00:14]}  Bd8 {[%clk 0:00:10]} 32. Rxb4 {[%clk 0:00:12]}  cxb4 {[%clk 0:00:09]} 33. Qd3 {[%clk 0:00:08]}  Bf6 {[%clk 0:00:09]} 34. Rc1 {[%clk 0:00:08]}  Qb7 {[%clk 0:00:08]} 35. Qe3 {[%clk 0:00:08]}  Rc8 {[%clk 0:00:08]} 36. Qh6 {[%clk 0:00:08]}  Bg7 {[%clk 0:00:08]} 37. Qe3 {[%clk 0:00:07]}  h6 {[%clk 0:00:08]} 38. Rc2 {[%clk 0:00:06]}  g5 {[%clk 0:00:08]} 39. Qb3 {[%clk 0:00:05]}  Rc5 {[%clk 0:00:09]} 40. Bd3 {[%clk 0:00:05]}  Qb6 {[%clk 0:00:09]} 41. Kf1 {[%clk 0:00:04]}  Bf8 {[%clk 0:00:08]} 42. Bc4 {[%clk 0:00:03]}  Be7 {[%clk 0:00:08]} 43. Ra2 {[%clk 0:00:03]}  Bd8 {[%clk 0:00:08]} 44. Ke2 {[%clk 0:00:04]}  Kg7 {[%clk 0:00:08]} 45. Kd3 {[%clk 0:00:03]}  Qc7 {[%clk 0:00:07]} 46. Rc2 {[%clk 0:00:03]}  Qb6 {[%clk 0:00:08]} 47. Re2 {[%clk 0:00:02]}  Qa7 {[%clk 0:00:08]} 48. Kd2 {[%clk 0:00:02]}  Qb6 {[%clk 0:00:08]} 49. Re3 {[%clk 0:00:03]}  Qc7 {[%clk 0:00:08]} 50. Kd3 {[%clk 0:00:03]}  Qb6 {[%clk 0:00:08]} 51. Re2 {[%clk 0:00:03]}  Qc7 {[%clk 0:00:08]} 52. Rc2 {[%clk 0:00:03]}  Qb6 {[%clk 0:00:08]} 53. Ke2 {[%clk 0:00:03]}  Be7 {[%clk 0:00:08]} 54. Qe3 {[%clk 0:00:04]}  Bd8 {[%clk 0:00:08]} 55. Qd3 {[%clk 0:00:04]}  Be7 {[%clk 0:00:08]} 56. Qb3 {[%clk 0:00:04]}  Bd8 {[%clk 0:00:08]} 57. Kd3 {[%clk 0:00:05]}  Qc7 {[%clk 0:00:08]} 58. Ke2 {[%clk 0:00:06]}  Qb6 {[%clk 0:00:08]} 59. Kd3 {[%clk 0:00:06]}  Qc7 {[%clk 0:00:09]} 60. Ke2 {[%clk 0:00:07]}  Qb6 {[%clk 0:00:07]} 1/2-1/2


[Site "https://www.chess.com"]

[Event "Titled Tuesday Blitz July 11 Early 2023"]
[White "Ionescu, Mihai"]
[Black "Castillo Pena, Patricia Evarista"]
[WhiteFideId "1202499"]
[BlackFideId "6412106"]
[WhiteElo "2555"]
[BlackElo "1833"]
[Result "1-0"]
[Round "5"]
[TimeControl "180+2"]
[Date "2023.07.11"]
[WhiteClock "0:00:12"]
[BlackClock "0:00:08"]
[Board "187"]

1. Nf3 {[%clk 0:02:43]}  d5 {[%clk 0:02:53]} 2. g3 {[%clk 0:02:42]}  Nf6 {[%clk 0:02:53]} 3. Bg2 {[%clk 0:02:38]}  c6 {[%clk 0:02:52]} 4. O-O {[%clk 0:02:37]}  e6 {[%clk 0:02:51]} 5. d4 {[%clk 0:02:34]}  Nbd7 {[%clk 0:02:51]} 6. c4 {[%clk 0:02:32]}  Be7 {[%clk 0:02:50]} 7. Qc2 {[%clk 0:02:30]}  O-O {[%clk 0:02:48]} 8. Rd1 {[%clk 0:02:30]}  b6 {[%clk 0:02:47]} 9. Bf4 {[%clk 0:02:30]}  Bb7 {[%clk 0:02:43]} 10. Nc3 {[%clk 0:02:30]}  a6 {[%clk 0:02:41]} 11. Nd2 {[%clk 0:02:21]}  Rc8 {[%clk 0:02:38]} 12. e4 {[%clk 0:02:20]}  dxe4 {[%clk 0:02:36]} 13. Ndxe4 {[%clk 0:02:19]}  Ba8 {[%clk 0:02:11]} 14. Rd2 {[%clk 0:02:02]}  Nxe4 {[%clk 0:01:59]} 15. Nxe4 {[%clk 0:01:58]}  Nf6 {[%clk 0:01:55]} 16. Rad1 {[%clk 0:01:56]}  Bb4 {[%clk 0:01:53]} 17. Rd3 {[%clk 0:01:46]}  Nxe4 {[%clk 0:01:52]} 18. Bxe4 {[%clk 0:01:45]}  g6 {[%clk 0:01:27]} 19. a3 {[%clk 0:01:44]}  Bd6 {[%clk 0:01:26]} 20. Qd2 {[%clk 0:01:38]}  Qc7 {[%clk 0:01:24]} 21. Bh6 {[%clk 0:01:24]}  Rfd8 {[%clk 0:01:21]} 22. Bg5 {[%clk 0:01:23]}  Be7 {[%clk 0:01:20]} 23. h4 {[%clk 0:01:15]}  Bxg5 {[%clk 0:00:47]} 24. Qxg5 {[%clk 0:01:13]}  Kg7 {[%clk 0:00:44]} 25. h5 {[%clk 0:01:12]}  h6 {[%clk 0:00:43]} 26. Qd2 {[%clk 0:00:50]}  g5 {[%clk 0:00:42]} 27. Qc3 {[%clk 0:00:47]}  Kg8 {[%clk 0:00:38]} 28. R3d2 {[%clk 0:00:39]}  Qe7 {[%clk 0:00:36]} 29. Bb1 {[%clk 0:00:34]}  Qf6 {[%clk 0:00:35]} 30. Qc2 {[%clk 0:00:28]}  Qg7 {[%clk 0:00:32]} 31. b4 {[%clk 0:00:27]}  c5 {[%clk 0:00:29]} 32. d5 {[%clk 0:00:25]}  exd5 {[%clk 0:00:27]} 33. cxd5 {[%clk 0:00:21]}  cxb4 {[%clk 0:00:27]} 34. Qb3 {[%clk 0:00:19]}  bxa3 {[%clk 0:00:26]} 35. Qxb6 {[%clk 0:00:18]}  Rb8 {[%clk 0:00:16]} 36. Qxa6 {[%clk 0:00:17]}  Rxb1 {[%clk 0:00:14]} 37. Rxb1 {[%clk 0:00:15]}  Bxd5 {[%clk 0:00:14]} 38. Qxa3 {[%clk 0:00:14]}  Be4 {[%clk 0:00:08]} 39. Rxd8+ {[%clk 0:00:12]} 1-0


[Site "https://www.chess.com"]

[Event "Titled Tuesday Blitz July 11 Early 2023"]
[White "Makhmudov, Shukhrat"]
[Black "Horokoskii"]
[WhiteFideId "14200775"]
[WhiteElo "2356"]
[BlackElo "2125"]
[Result "0-1"]
[Round "5"]
[TimeControl "180+2"]
[Date "2023.07.11"]
[WhiteClock "0:02:03"]
[BlackClock "0:01:16"]
[Board "188"]

1. e4 {[%clk 0:02:52]}  e6 {[%clk 0:02:58]} 2. d4 {[%clk 0:02:52]}  d5 {[%clk 0:02:53]} 3. exd5 {[%clk 0:02:50]}  exd5 {[%clk 0:02:54]} 4. Bd3 {[%clk 0:02:49]}  Bd6 {[%clk 0:02:52]} 5. Ne2 {[%clk 0:02:49]}  Ne7 {[%clk 0:02:52]} 6. O-O {[%clk 0:02:49]}  Nbc6 {[%clk 0:02:50]} 7. c3 {[%clk 0:02:48]}  Bg4 {[%clk 0:02:50]} 8. f3 {[%clk 0:02:48]}  Bf5 {[%clk 0:02:50]} 9. Bf4 {[%clk 0:02:47]}  O-O {[%clk 0:02:49]} 10. Qc2 {[%clk 0:02:41]}  Bxd3 {[%clk 0:02:46]} 11. Qxd3 {[%clk 0:02:42]}  Bxf4 {[%clk 0:02:45]} 12. Nxf4 {[%clk 0:02:42]}  Qd6 {[%clk 0:02:45]} 13. Nh3 {[%clk 0:02:38]}  h6 {[%clk 0:02:39]} 14. Nd2 {[%clk 0:02:38]}  Rfe8 {[%clk 0:02:39]} 15. Nf2 {[%clk 0:02:38]}  Ng6 {[%clk 0:02:38]} 16. Ng4 {[%clk 0:02:37]}  Nf4 {[%clk 0:02:31]} 17. Qb5 {[%clk 0:02:36]}  a6 {[%clk 0:02:26]} 18. Qb3 {[%clk 0:02:34]}  Re2 {[%clk 0:02:23]} 19. Rf2 {[%clk 0:02:32]}  Na5 {[%clk 0:02:05]} 20. Qd1 {[%clk 0:02:27]}  Rae8 {[%clk 0:02:03]} 21. Ne5 {[%clk 0:02:25]}  Rxf2 {[%clk 0:01:56]} 22. Kxf2 {[%clk 0:02:25]}  f6 {[%clk 0:01:50]} 23. Qa4 {[%clk 0:02:23]}  b5 {[%clk 0:01:38]} 24. Qxa5 {[%clk 0:02:21]}  fxe5 {[%clk 0:01:37]} 25. g3 {[%clk 0:02:18]}  Nd3+ {[%clk 0:01:32]} 26. Kg2 {[%clk 0:02:15]}  exd4 {[%clk 0:01:28]} 27. Kf1 {[%clk 0:02:03]}  Qe6 {[%clk 0:01:16]} 0-1


[Site "https://www.chess.com"]

[Event "Titled Tuesday Blitz July 11 Early 2023"]
[White "Kiseleva, Arina"]
[Black "Adla, Diego"]
[WhiteFideId "4164989"]
[BlackFideId "100072"]
[WhiteElo "2160"]
[BlackElo "2506"]
[Result "1-0"]
[Round "5"]
[TimeControl "180+2"]
[Date "2023.07.11"]
[WhiteClock "0:01:03"]
[BlackClock "0:01:09"]
[Board "193"]

1. d4 {[%clk 0:03:00]}  Nf6 {[%clk 0:02:58]} 2. Nf3 {[%clk 0:03:00]}  e6 {[%clk 0:02:58]} 3. e3 {[%clk 0:03:00]}  b6 {[%clk 0:02:58]} 4. Bd3 {[%clk 0:03:00]}  Bb7 {[%clk 0:02:58]} 5. Nbd2 {[%clk 0:03:00]}  c5 {[%clk 0:02:58]} 6. O-O {[%clk 0:03:00]}  Be7 {[%clk 0:02:58]} 7. b3 {[%clk 0:03:00]}  O-O {[%clk 0:02:57]} 8. Bb2 {[%clk 0:03:00]}  d6 {[%clk 0:02:52]} 9. Rc1 {[%clk 0:03:00]}  Nbd7 {[%clk 0:02:49]} 10. c4 {[%clk 0:02:59]}  Rc8 {[%clk 0:02:48]} 11. h3 {[%clk 0:02:54]}  d5 {[%clk 0:02:38]} 12. Ne5 {[%clk 0:02:37]}  Ne4 {[%clk 0:02:33]} 13. Ndf3 {[%clk 0:02:25]}  f6 {[%clk 0:02:10]} 14. Nxd7 {[%clk 0:02:25]}  Qxd7 {[%clk 0:02:11]} 15. dxc5 {[%clk 0:02:23]}  Bxc5 {[%clk 0:02:08]} 16. Bxe4 {[%clk 0:02:21]}  Rfd8 {[%clk 0:02:03]} 17. cxd5 {[%clk 0:02:19]}  exd5 {[%clk 0:02:03]} 18. Bb1 {[%clk 0:02:18]}  Ba6 {[%clk 0:01:58]} 19. Bd3 {[%clk 0:02:12]}  Bxd3 {[%clk 0:01:58]} 20. Qxd3 {[%clk 0:02:11]}  Be7 {[%clk 0:01:47]} 21. Rxc8 {[%clk 0:02:10]}  Rxc8 {[%clk 0:01:48]} 22. Rd1 {[%clk 0:02:09]}  Rd8 {[%clk 0:01:47]} 23. e4 {[%clk 0:02:02]}  d4 {[%clk 0:01:42]} 24. Qc4+ {[%clk 0:01:54]}  Kh8 {[%clk 0:01:41]} 25. Rxd4 {[%clk 0:01:44]}  Qc8 {[%clk 0:01:39]} 26. Qxc8 {[%clk 0:01:30]}  Rxc8 {[%clk 0:01:39]} 27. Rd7 {[%clk 0:01:28]}  Bb4 {[%clk 0:01:34]} 28. Rxa7 {[%clk 0:01:26]}  h6 {[%clk 0:01:29]} 29. e5 {[%clk 0:01:19]}  fxe5 {[%clk 0:01:22]} 30. Bxe5 {[%clk 0:01:16]}  Rc1+ {[%clk 0:01:19]} 31. Kh2 {[%clk 0:01:15]}  Rc2 {[%clk 0:01:18]} 32. Rxg7 {[%clk 0:01:11]}  Rxf2 {[%clk 0:01:16]} 33. Nh4 {[%clk 0:01:04]}  Be1 {[%clk 0:01:09]} 34. Ng6# {[%clk 0:01:03]} 1-0


[Site "https://www.chess.com"]

[Event "Titled Tuesday Blitz July 11 Early 2023"]
[White "Blokhin, Sofia"]
[Black "Ho, In Hei Henry"]
[WhiteFideId "4508190"]
[BlackFideId "6002552"]
[WhiteElo "2298"]
[BlackElo "2133"]
[Result "0-1"]
[Round "5"]
[TimeControl "180+2"]
[Date "2023.07.11"]
[WhiteClock "0:00:47"]
[BlackClock "0:00:15"]
[Board "196"]

1. e4 {[%clk 0:03:00]}  e6 {[%clk 0:02:59]} 2. d4 {[%clk 0:02:58]}  d5 {[%clk 0:03:00]} 3. e5 {[%clk 0:02:57]}  c5 {[%clk 0:03:00]} 4. c3 {[%clk 0:02:58]}  Qb6 {[%clk 0:03:00]} 5. Nf3 {[%clk 0:02:58]}  Nc6 {[%clk 0:03:00]} 6. a3 {[%clk 0:02:58]}  c4 {[%clk 0:02:53]} 7. Be2 {[%clk 0:02:55]}  Na5 {[%clk 0:02:53]} 8. Nbd2 {[%clk 0:02:53]}  Bd7 {[%clk 0:02:54]} 9. O-O {[%clk 0:02:53]}  Ne7 {[%clk 0:02:50]} 10. h3 {[%clk 0:02:52]}  h6 {[%clk 0:02:43]} 11. Nh4 {[%clk 0:02:48]}  g5 {[%clk 0:02:40]} 12. Nhf3 {[%clk 0:02:47]}  Rg8 {[%clk 0:02:39]} 13. Nh2 {[%clk 0:02:45]}  Ng6 {[%clk 0:02:36]} 14. Ng4 {[%clk 0:02:41]}  O-O-O {[%clk 0:02:29]} 15. Nf6 {[%clk 0:02:40]}  Rg7 {[%clk 0:02:22]} 16. Nxd7 {[%clk 0:02:29]}  Rxd7 {[%clk 0:02:17]} 17. Bh5 {[%clk 0:02:28]}  Nf4 {[%clk 0:02:15]} 18. Be2 {[%clk 0:02:25]}  Qd8 {[%clk 0:02:03]} 19. b3 {[%clk 0:02:19]}  f6 {[%clk 0:01:53]} 20. bxc4 {[%clk 0:02:17]}  fxe5 {[%clk 0:01:43]} 21. cxd5 {[%clk 0:02:14]}  exd4 {[%clk 0:01:34]} 22. cxd4 {[%clk 0:02:07]}  Rxd5 {[%clk 0:01:17]} 23. Nf3 {[%clk 0:01:59]}  Bd6 {[%clk 0:01:04]} 24. Be3 {[%clk 0:01:55]}  g4 {[%clk 0:00:59]} 25. hxg4 {[%clk 0:01:53]}  Rxg4 {[%clk 0:00:59]} 26. g3 {[%clk 0:01:48]}  Qg8 {[%clk 0:00:45]} 27. Kh2 {[%clk 0:01:42]}  Rh5+ {[%clk 0:00:34]} 28. Nh4 {[%clk 0:01:22]}  Rhxh4+ {[%clk 0:00:31]} 29. gxh4 {[%clk 0:01:16]}  Nxe2+ {[%clk 0:00:27]} 30. Kh3 {[%clk 0:01:00]}  Rg3+ {[%clk 0:00:25]} 31. Kh2 {[%clk 0:00:54]}  Rg1+ {[%clk 0:00:16]} 32. Kh3 {[%clk 0:00:47]}  Qg4# {[%clk 0:00:15]} 0-1


[Site "https://www.chess.com"]